bitfinex-derivatives/quotes_BTCF0:USTF0_20251229
["timestamp","ask_amount","ask_price","bid_price","bid_amount"]
[1766974628944,0.05688,89372.0,89350.0,0.0952]
[1766974629143,0.05688,89372.0,89348.0,0.05688]
[1766974629342,0.00016784,89369.0,89344.0,0.0112038]
[1766974629541,0.0952,89368.0,89348.0,0.0112033]
[1766974630848,0.0952,89368.0,89344.0,0.0112037]
[1766974631045,0.0952,89368.0,89345.0,0.13928]
[1766974631542,0.0952,89368.0,89333.0,0.00223883]
[1766974631950,0.0952,89368.0,89333.0,0.09743883]
[1766974632145,0.0112019,89360.0,89333.0,0.09743883]
[1766974632351,0.0112024,89356.0,89333.0,0.09743883]
[1766974632843,0.0112028,89353.0,89333.0,0.00223883]
[1766974633045,0.1064023,89357.0,89333.0,0.00223883]
[1766974633240,0.0952,89357.0,89333.0,0.00223883]
[1766974633749,0.0952,89357.0,89311.0,0.00014287]
[1766974633750,0.0112038,89345.0,89325.0,0.05688]
[1766974634049,0.00016784,89344.0,89313.0,0.09524]
[1766974634251,0.0112064,89324.0,89303.0,0.00223958]
[1766974634551,0.0112077,89314.0,89283.0,0.09524]
[1766974634753,0.15212,89313.0,89283.0,0.09524]
[1766974635052,0.00016795,89322.0,89300.0,0.0112093]
[1766974635349,0.00016795,89322.0,89296.0,0.09524]
[1766974635350,0.05697706,89321.0,89296.0,0.09524]
[1766974635941,0.05697706,89321.0,89297.0,0.0112096]
[1766974636138,0.05697706,89321.0,89292.0,0.0112103]
[1766974636346,0.06818386,89321.0,89293.0,0.13032]
[1766974636551,0.05697706,89321.0,89295.0,0.01121]
[1766974637043,0.05697706,89321.0,89272.0,0.02408031]
[1766974637044,0.05697706,89321.0,89286.0,0.011211]
[1766974637243,0.05697706,89321.0,89287.0,0.01872]
[1766974637451,0.0112078,89313.0,89287.0,0.11396]
[1766974637647,0.0112082,89310.0,89278.0,0.0112121]
[1766974637846,0.00016795,89303.0,89284.0,0.0112113]
[1766974638047,0.00012419,89302.0,89284.0,0.1064513]
[1766974638251,0.00012419,89302.0,89284.0,0.09524]
[1766974638452,0.00012419,89302.0,89285.0,0.0112112]
[1766974638946,0.00012419,89302.0,89284.0,0.09524]
[1766974639145,0.00012419,89302.0,89281.0,0.0112117]
[1766974639545,0.00012419,89302.0,89281.0,0.1064517]
[1766974640144,0.0112109,89288.0,89243.0,0.05688]
[1766974640454,0.00016795,89274.0,89244.0,0.09524]
[1766974640646,0.00016795,89274.0,89250.0,0.0112155]
[1766974640840,0.00016795,89274.0,89244.0,0.09524]
[1766974640841,0.00016795,89274.0,89255.0,0.011215]
[1766974641240,0.00010626,89273.0,89255.0,0.011215]
[1766974642043,0.00010626,89273.0,89254.0,0.011215]
[1766974642437,0.05692,89281.0,89256.0,0.0112148]
[1766974642648,0.1522,89281.0,89256.0,0.1064948]
[1766974642937,0.0112119,89280.0,89256.0,0.09528]
[1766974643151,0.1522,89281.0,89256.0,0.1064948]
[1766974643346,0.1522,89281.0,89256.0,0.09528]
[1766974643550,0.00016805,89277.0,89246.0,0.0112161]
[1766974643855,0.00016805,89277.0,89206.0,0.0112211]
[1766974643856,0.0112131,89271.0,89239.0,0.11202222]
[1766974644151,0.0112131,89271.0,89236.0,0.0112173]
[1766974644452,0.0112145,89260.0,89230.0,0.0112181]
[1766974644651,0.09528,89278.0,89202.0,0.0112216]
[1766974644652,0.01138335,89253.0,89221.0,0.23824]
[1766974644951,0.0112158,89249.0,89222.0,0.09528]
[1766974645152,0.0112158,89249.0,89217.0,0.0112197]
[1766974645351,0.00016805,89253.0,89189.0,0.0112233]
[1766974645352,0.0112167,89242.0,89212.0,0.0112203]
[1766974645550,0.0112181,89231.0,89202.0,0.0112216]
[1766974645748,0.00011668,89241.0,89214.0,0.08145269]
[1766974645749,0.0112179,89232.0,89214.0,0.08145269]
[1766974646055,0.00016805,89233.0,89215.0,0.09528]
[1766974646452,0.00011668,89241.0,89225.0,0.0112187]
[1766974646655,0.00011668,89241.0,89205.0,0.00780708]
[1766974646656,0.0112131,89271.0,89226.0,0.1522]
[1766974646954,0.0112131,89271.0,89236.0,0.0112173]
[1766974647250,0.09528,89277.0,89208.0,0.0112208]
[1766974647459,0.00016805,89251.0,89234.0,0.00016805]
[1766974647657,0.00012311,89250.0,89209.0,0.0112207]
[1766974647843,0.0112167,89242.0,89210.0,0.1522]
[1766974648045,0.0112178,89233.0,89194.0,8.142e-05]
[1766974648248,0.00010891,89232.0,89206.0,0.011221]
[1766974648458,0.00010891,89232.0,89208.0,0.0112209]
[1766974648654,0.00010891,89232.0,89209.0,0.09528]
[1766974648852,0.00016805,89229.0,89210.0,0.05692]
[1766974649052,0.00016805,89229.0,89211.0,0.0112205]
[1766974649645,0.00016805,89229.0,89206.0,0.0112211]
[1766974649855,0.00016805,89229.0,89207.0,0.12668]
[1766974650048,0.00016805,89229.0,89204.0,0.00780708]
[1766974650253,0.00016805,89229.0,89212.0,0.01902748]
[1766974650450,0.00016805,89229.0,89213.0,0.09532]
[1766974650851,0.00016805,89229.0,89165.0,0.0112262]
[1766974651052,0.00016805,89229.0,89207.0,0.00780708]
[1766974651251,0.00016805,89229.0,89207.0,0.02784]
[1766974651252,0.0112184,89228.0,89207.0,0.02784]
[1766974651457,0.00016805,89229.0,89208.0,0.1065409]
[1766974652457,0.00016805,89229.0,89183.0,0.00224259]
[1766974652659,0.00016805,89229.0,89195.0,0.15224]
[1766974652856,0.00016805,89229.0,89195.0,0.16004708]
[1766974653056,0.00016805,89229.0,89196.0,0.0112224]
[1766974653252,0.00016805,89229.0,89203.0,0.0112214]
[1766974653550,0.00016805,89229.0,89195.0,0.00780708]
[1766974653748,0.00016805,89229.0,89202.0,0.0112216]
[1766974653955,0.01138635,89229.0,89203.0,0.15224]
[1766974654255,0.00016805,89229.0,89208.0,0.0112209]
[1766974654562,0.00016805,89229.0,89209.0,0.15224]
[1766974654772,0.00016805,89229.0,89204.0,0.0112214]
[1766974654954,0.00016805,89229.0,89143.0,0.011229]
[1766974654955,0.0112185,89228.0,89205.0,0.15228]
[1766974655151,0.00016805,89229.0,89206.0,0.1154]
[1766974655352,0.00016805,89229.0,89206.0,0.12320708]
[1766974656158,0.00016805,89229.0,89211.0,0.0112205]
[1766974657056,0.00016805,89229.0,89206.0,0.12320708]
[1766974657266,0.00016805,89229.0,89208.0,0.0112209]
[1766974657454,0.00016805,89229.0,89206.0,0.00780708]
[1766974657656,0.00016805,89229.0,89207.0,0.1298]
[1766974657860,0.00016805,89229.0,89207.0,0.011221]
[1766974658061,0.00016805,89229.0,89206.0,0.0112211]
[1766974658260,0.00016805,89229.0,89206.0,0.01902818]
[1766974658462,0.00016805,89229.0,89208.0,0.0112209]
[1766974658663,0.00016805,89229.0,89209.0,0.09536]
[1766974659061,0.00016805,89229.0,89208.0,0.0112209]
[1766974659062,0.00016805,89229.0,89210.0,0.15232]
[1766974659866,0.00016805,89229.0,89194.0,0.01130412]
[1766974660067,0.00016805,89229.0,89209.0,0.0112208]
[1766974660362,0.00016805,89229.0,89194.0,0.03008142]
[1766974660363,0.00016805,89229.0,89201.0,0.0112217]
[1766974660564,0.00016805,89229.0,89202.0,0.11448]
[1766974660769,0.00016805,89229.0,89211.0,0.0112204]
[1766974661069,0.00016805,89229.0,89212.0,0.09536]
[1766974661272,0.00016805,89229.0,89213.0,0.09536]
[1766974661970,0.00016805,89229.0,89214.0,0.05696]
[1766974662871,0.0112185,89228.0,89202.0,0.0112216]
[1766974663074,0.00016805,89229.0,89204.0,0.0112214]
[1766974663272,0.00016805,89229.0,89203.0,0.11444]
[1766974663273,0.00016805,89229.0,89209.0,0.0112208]
[1766974663471,0.00016805,89229.0,89208.0,0.00780708]
[1766974663472,0.00016805,89229.0,89210.0,0.05696]
[1766974663768,0.00016805,89229.0,89208.0,0.00780708]
[1766974664070,0.00016805,89229.0,89209.0,0.123]
[1766974664373,0.00010891,89232.0,89218.0,0.0112196]
[1766974664564,0.00010891,89232.0,89219.0,0.09536]
[1766974665966,0.00010891,89232.0,89220.0,0.05696]
[1766974666168,0.00010891,89232.0,89221.0,0.05696]
[1766974666367,0.05692,89248.0,89221.0,0.05696]
[1766974666368,0.09536,89250.0,89225.0,0.00780708]
[1766974666573,0.0112171,89239.0,89226.0,0.05696]
[1766974666770,0.0112174,89236.0,89225.0,0.09536]
[1766974667073,0.09536,89250.0,89219.0,0.09536]
[1766974667274,0.0112173,89238.0,89219.0,0.06236]
[1766974667463,0.0112178,89233.0,89217.0,0.00016805]
[1766974667664,0.00016805,89237.0,89218.0,0.1088]
[1766974667879,0.00016805,89237.0,89223.0,0.00780708]
[1766974668269,0.0112174,89236.0,89224.0,0.09536]
[1766974668463,0.0112178,89234.0,89223.0,0.00780708]
[1766974668776,0.00016805,89237.0,89221.0,0.09536]
[1766974669473,0.0112174,89236.0,89217.0,0.00016805]
[1766974669797,0.0112166,89243.0,89219.0,0.0112195]
[1766974670076,0.09536,89250.0,89218.0,0.15232]
[1766974670277,0.0112168,89241.0,89218.0,0.15232]
[1766974670475,0.09536,89250.0,89218.0,0.15232]
[1766974670879,0.0112171,89239.0,89219.0,0.15232]
[1766974671175,0.00016805,89243.0,89217.0,0.00016805]
[1766974671379,0.0112176,89235.0,89218.0,0.0134]
[1766974671673,0.00016805,89243.0,89217.0,0.00016805]
[1766974671674,0.0112182,89230.0,89217.0,5e-08]
[1766974672070,0.0112177,89234.0,89217.0,5e-08]
[1766974672272,0.09536,89238.0,89217.0,5e-08]
[1766974672478,0.0112189,89224.0,89217.0,5e-08]
[1766974672680,0.0112189,89224.0,89194.0,0.01130402]
[1766974672876,0.0112189,89224.0,89195.0,0.16986371]
[1766974673177,0.0112189,89224.0,89196.0,0.07450371]
[1766974673374,0.09536,89225.0,89194.0,8.142e-05]
[1766974673573,0.09536,89225.0,89183.0,0.00224259]
[1766974673574,0.0112219,89201.0,89183.0,0.00224259]
[1766974673778,0.0112219,89201.0,89183.0,0.00241074]
[1766974673974,0.09536,89207.0,89183.0,0.00241074]
[1766974674174,0.0112219,89201.0,89183.0,0.00241074]
[1766974674478,0.0112219,89201.0,89156.0,0.0112274]
[1766974674479,0.0112214,89204.0,89166.0,0.09536]
[1766974674679,0.00010949,89203.0,89167.0,0.09536]
[1766974675071,0.00010949,89203.0,89178.0,0.0112246]
[1766974675283,0.00010949,89203.0,89179.0,0.15232]
[1766974675473,0.00010949,89203.0,89178.0,0.0112246]
[1766974675675,0.09536,89213.0,89192.0,0.0112228]
[1766974675869,0.09536,89213.0,89195.0,0.0112225]
[1766974676076,0.0112196,89219.0,89191.0,0.068183]
[1766974676375,0.15232,89220.0,89191.0,0.05696]
[1766974676677,0.00016815,89214.0,89191.0,0.05696]
[1766974677083,0.00016815,89214.0,89191.0,0.068183]
[1766974677293,0.00016815,89214.0,89191.0,0.05696]
[1766974677482,0.00016815,89214.0,89190.0,0.09536]
[1766974677483,0.0112203,89213.0,89190.0,0.05696]
[1766974677670,0.0112203,89213.0,89190.0,0.15236]
[1766974677876,0.0112203,89213.0,89188.0,0.0954]
[1766974678180,0.0112203,89213.0,89187.0,0.05696]
[1766974678381,0.0112203,89213.0,89188.0,0.0954]
[1766974678578,0.0112208,89209.0,89182.0,0.00016815]
[1766974678881,0.09556815,89214.0,89183.0,0.15236]
[1766974679180,0.09556815,89214.0,89184.0,0.15236]
[1766974679379,0.09556815,89214.0,89185.0,0.0954]
[1766974679881,0.0112204,89213.0,89186.0,0.0954]
[1766974680487,0.0112204,89213.0,89186.0,0.0112237]
[1766974680681,0.09556815,89214.0,89191.0,0.0112229]
[1766974680882,0.09556815,89214.0,89195.0,0.0112225]
[1766974681076,0.00016815,89214.0,89196.0,0.05696]
[1766974681280,0.011217,89240.0,89196.0,0.05696]
[1766974681281,0.0954,89225.0,89207.0,0.011221]
[1766974681487,0.0954,89228.0,89206.0,0.0112211]
[1766974681995,0.0954,89228.0,89202.0,0.0112216]
[1766974682290,0.0954,89228.0,89197.0,0.05696]
[1766974682291,0.0954,89228.0,89212.0,0.0112204]
[1766974682483,0.0954,89228.0,89208.0,0.0954]
[1766974682683,0.0954,89228.0,89187.0,0.01288271]
[1766974682886,0.0954,89228.0,89164.0,0.0112264]
[1766974682887,0.0954,89228.0,89191.0,0.011223]
[1766974683186,0.0112189,89224.0,89186.0,0.0954]
[1766974683392,0.011221,89208.0,89186.0,0.0954]
[1766974683888,0.00016815,89206.0,89188.0,0.00016815]
[1766974684085,0.00016815,89206.0,89189.0,0.0681832]
[1766974684282,0.00016815,89206.0,89189.0,0.05696]
[1766974684893,0.00016815,89206.0,89190.0,0.0112231]
[1766974685086,0.0954,89214.0,89193.0,0.0112227]
[1766974685284,0.0954,89222.0,89189.0,0.0681833]
[1766974685689,0.0112204,89212.0,89189.0,0.0681833]
[1766974685882,0.0112209,89209.0,89189.0,0.05696]
[1766974686082,0.00016815,89208.0,89188.0,0.00016815]
[1766974686282,0.0112231,89191.0,89169.0,0.0112258]
[1766974686488,0.0112207,89210.0,89170.0,0.16990774]
[1766974686489,0.0112239,89185.0,89170.0,0.16990774]
[1766974686794,0.05696,89212.0,89171.0,0.07450774]
[1766974686795,0.0112241,89183.0,89171.0,0.07450774]
[1766974686985,0.0112241,89183.0,89172.0,0.16990774]
[1766974687185,0.011224,89184.0,89173.0,0.07450774]
[1766974687492,0.011224,89184.0,89174.0,0.11294996]
[1766974687683,0.01139165,89188.0,89175.0,0.01754996]
[1766974687882,0.01139165,89188.0,89176.0,0.01754996]
[1766974688083,0.01139165,89188.0,89174.0,0.0954]
[1766974688587,0.01139165,89188.0,89173.0,0.0954]
[1766974688893,0.01139165,89188.0,89170.0,0.00016815]
[1766974688894,0.0112238,89185.0,89171.0,0.05696]
[1766974689091,0.00016815,89188.0,89172.0,0.11295015]
[1766974689286,0.0954,89200.0,89180.0,0.0112244]
[1766974689491,0.0954,89200.0,89179.0,0.0112245]
[1766974689993,0.0954,89200.0,89175.0,0.011225]
[1766974689994,0.0112221,89199.0,89175.0,0.011225]
[1766974690189,0.0112228,89193.0,89172.0,0.0954]
[1766974690491,0.0954,89200.0,89171.0,0.0681855]
[1766974690492,0.0112237,89186.0,89171.0,0.15236]
[1766974690885,0.00016815,89196.0,89175.0,0.011225]
[1766974692303,0.00016815,89196.0,89173.0,0.11456]
[1766974692993,0.01139065,89196.0,89173.0,0.11456]
[1766974693178,0.0112229,89193.0,89173.0,0.11456]
[1766974693981,0.0112233,89190.0,89170.0,0.00016815]
[1766974694181,0.23575914,89190.0,89171.0,0.15236]
[1766974694387,0.0112235,89188.0,89171.0,0.15236]
[1766974694786,0.0112235,89188.0,89170.0,0.00016815]
[1766974694787,0.0112234,89188.0,89170.0,0.00016815]
[1766974695896,0.0112238,89186.0,89170.0,0.00016815]
[1766974696282,0.0112248,89177.0,89156.0,0.01288788]
[1766974696495,0.0112248,89177.0,89153.0,0.01347115]
[1766974696685,0.05696,89176.0,89153.0,1e-08]
[1766974697190,0.0112251,89175.0,89153.0,1e-08]
[1766974697489,0.00016815,89173.0,89155.0,0.00016815]
[1766974697679,0.00016815,89173.0,89159.0,0.0112271]
[1766974697883,0.00016815,89173.0,89155.0,0.01139565]
[1766974698080,0.00016815,89173.0,89156.0,0.0954]
[1766974698290,0.0112258,89170.0,89156.0,0.0954]
[1766974698488,0.011226,89168.0,89155.0,0.00016815]
[1766974698683,0.0112257,89170.0,89153.0,1e-08]
[1766974698884,0.0112269,89161.0,89153.0,1e-08]
[1766974699090,0.0112264,89165.0,89153.0,1e-08]
[1766974699496,0.22453584,89170.0,89153.0,1e-08]
[1766974699692,0.011227,89160.0,89140.0,0.0112294]
[1766974699891,0.011227,89160.0,89141.0,0.15236]
[1766974700098,0.0112265,89164.0,89142.0,0.0954]
[1766974700296,0.0112269,89161.0,89142.0,0.0954]
[1766974700594,0.0112269,89161.0,89124.0,0.23856]
[1766974700595,0.31993584,89170.0,89143.0,0.00016826]
[1766974700897,0.0112278,89154.0,89143.0,0.00016826]
[1766974701095,0.00016826,89160.0,89143.0,0.00016826]
[1766974701294,0.22453584,89180.0,89153.0,0.0112277]
[1766974701594,0.0112257,89170.0,89153.0,0.0954]
[1766974701796,0.22453584,89180.0,89123.0,0.0022441]
[1766974702098,0.22453584,89160.0,89129.0,0.12064]
[1766974702398,0.15236,89179.0,89129.0,0.12064]
[1766974702399,0.22453584,89170.0,89137.0,0.0112298]
[1766974702594,0.0112279,89153.0,89136.0,0.00016826]
[1766974702792,0.0112282,89150.0,89136.0,0.00016826]
[1766974703098,0.0112282,89150.0,89137.0,0.1224]
[1766974703298,0.0112282,89150.0,89138.0,0.1524]
[1766974703793,0.0112281,89151.0,89139.0,0.05696]
[1766974704096,0.0112253,89174.0,89139.0,0.1524]
[1766974704296,0.22453584,89170.0,89139.0,0.1524]
[1766974704595,0.0112272,89159.0,89139.0,0.1636296]
[1766974704996,0.0112275,89156.0,89139.0,0.1524]
[1766974705298,0.0112278,89153.0,89139.0,0.1524]
[1766974705493,0.0112278,89153.0,89140.0,0.05696]
[1766974705794,0.00016826,89156.0,89141.0,0.09544]
[1766974706491,0.00016826,89156.0,89142.0,0.05696]
[1766974706693,0.00016826,89156.0,89136.0,0.00016826]
[1766974706887,0.0112284,89149.0,89128.0,0.00011399]
[1766974707085,0.0112285,89148.0,89128.0,9e-08]
[1766974707311,0.0112285,89148.0,89129.0,0.12724]
[1766974707495,0.0112297,89139.0,89129.0,0.12724]
[1766974707693,0.0112285,89148.0,89128.0,9e-08]
[1766974707891,0.0112299,89137.0,89129.0,0.15256826]
[1766974708092,0.0112302,89134.0,89130.0,0.1524]
[1766974708286,0.0112302,89134.0,89130.0,0.05696]
[1766974708487,0.0112307,89131.0,89107.0,0.0112336]
[1766974708697,0.0001139,89136.0,89117.0,0.04392]
[1766974708897,0.0112293,89142.0,89121.0,0.0112318]
[1766974709102,0.1524,89164.0,89127.0,0.011231]
[1766974709402,0.22453584,89150.0,89137.0,6e-08]
[1766974709793,0.0112294,89141.0,89137.0,6e-08]
[1766974710594,0.0112289,89145.0,89137.0,6e-08]
[1766974710794,0.22453584,89150.0,89137.0,6e-08]
[1766974710990,0.0112305,89132.0,89111.0,0.011233]
[1766974711196,0.0112283,89150.0,89114.0,0.0112328]
[1766974711406,0.0112302,89134.0,89114.0,0.0112328]
[1766974711904,0.0112302,89134.0,89093.0,0.01513827]
[1766974711905,0.0112318,89122.0,89093.0,0.00224486]
[1766974712095,0.0112303,89134.0,89113.0,0.0112328]
[1766974712398,0.0112317,89123.0,89105.0,0.05016826]
[1766974712596,0.011232,89120.0,89106.0,0.1524]
[1766974712797,0.0112324,89117.0,89105.0,0.05016826]
[1766974713298,0.00016826,89120.0,89105.0,0.05016826]
[1766974713497,0.0112324,89117.0,89106.0,0.1524]
[1766974714089,0.0112328,89114.0,89105.0,0.05016826]
[1766974714291,0.0112328,89114.0,89106.0,0.1524]
[1766974714604,0.22453584,89116.0,89093.0,0.00224486]
[1766974714817,0.0112336,89108.0,89095.0,0.05696]
[1766974715102,0.2247041,89120.0,89095.0,0.05696]
[1766974715103,0.0112333,89110.0,89095.0,0.05696]
[1766974715301,0.0112338,89106.0,89096.0,0.1524]
[1766974715600,0.0112341,89104.0,89097.0,0.1524]
[1766974715904,0.0112341,89104.0,89093.0,0.00224486]
[1766974715905,0.0112332,89111.0,89098.0,0.1524]
[1766974716099,0.00016826,89120.0,89098.0,0.1524]
[1766974716406,0.0112321,89119.0,89098.0,0.1524]
[1766974716703,0.2247041,89120.0,89093.0,0.00224486]
[1766974717001,0.0112342,89103.0,89069.0,0.00793767]
[1766974717206,0.0112346,89100.0,89077.0,0.0681973]
[1766974717403,0.0112346,89100.0,89077.0,0.0112373]
[1766974717700,0.0112342,89103.0,89079.0,0.0112371]
[1766974718098,0.01140295,89100.0,89075.0,0.0112376]
[1766974718400,0.01140295,89100.0,89077.0,0.15244]
[1766974718794,0.01140295,89100.0,89069.0,0.00793767]
[1766974718795,0.00016835,89100.0,89069.0,0.00793767]
[1766974718992,8.946e-05,89102.0,89082.0,0.0112367]
[1766974719196,8.946e-05,89102.0,89078.0,0.0112372]
[1766974719197,0.0112344,89101.0,89078.0,0.0112372]
[1766974719602,0.0112348,89098.0,89076.0,0.0002243]
[1766974719810,8.946e-05,89102.0,89077.0,0.05124]
[1766974720101,0.0112363,89086.0,89081.0,5e-08]
[1766974720299,0.0112363,89086.0,89076.0,0.0002243]
[1766974720503,0.0112363,89086.0,89077.0,0.15244]
[1766974720694,0.0112363,89086.0,89078.0,0.15244]
[1766974720895,0.22453584,89090.0,89056.0,0.01124]
[1766974721109,8.946e-05,89089.0,89064.0,0.15244]
[1766974721314,8.946e-05,89089.0,89065.0,0.15244]
[1766974721607,0.011237,89081.0,89065.0,0.15244]
[1766974721908,0.0112375,89077.0,89066.0,0.15248]
[1766974722106,0.0112369,89082.0,89056.0,0.01124]
[1766974722299,0.00016835,89078.0,89057.0,0.15248]
[1766974722695,8.946e-05,89089.0,89067.0,0.0112386]
[1766974722900,0.01132546,89089.0,89068.0,0.15248]
[1766974723107,8.946e-05,89089.0,89074.0,0.0112377]
[1766974723305,0.22453584,89120.0,89079.0,0.0112371]
[1766974723604,0.0112343,89102.0,89080.0,0.057]
[1766974723812,0.0112348,89099.0,89091.0,5e-08]
[1766974724103,0.0112352,89095.0,89086.0,0.09548]
[1766974724309,0.0112352,89095.0,89054.0,0.23872]
[1766974724310,0.1863,89093.0,89014.0,0.02940123]
[1766974724499,0.0112355,89092.0,89024.0,0.0112441]
[1766974724698,0.0112355,89092.0,89007.0,0.09548]
[1766974724699,0.0112377,89075.0,89025.0,0.1526]
[1766974724905,0.0112409,89050.0,89026.0,0.09548]
[1766974725205,0.01140966,89047.0,89030.0,0.37721664]
[1766974725400,0.01140966,89047.0,89009.0,0.0112459]
[1766974725401,0.0112422,89039.0,89009.0,0.0112459]
[1766974725602,0.0112428,89035.0,89010.0,0.15128]
[1766974725908,0.00016846,89047.0,89010.0,0.15128]
[1766974726209,0.00016846,89047.0,89011.0,0.11231096]
[1766974726398,0.00016846,89047.0,89027.0,0.0112437]
[1766974726595,0.00016846,89047.0,89028.0,0.1526]
[1766974727107,0.00016846,89047.0,89033.0,0.0112429]
[1766974727311,0.1067193,89063.0,89028.0,0.1526]
[1766974727604,0.0112393,89063.0,89028.0,0.1526]
[1766974728005,0.0112403,89055.0,89029.0,0.0112434]
[1766974728196,0.0112415,89045.0,89033.0,0.00016846]
[1766974728400,0.0112415,89045.0,89034.0,0.15268]
[1766974728602,0.0089974,89045.0,89035.0,0.15268]
[1766974728907,0.011242,89041.0,89033.0,0.00016846]
[1766974729106,0.011242,89041.0,89015.0,0.0112452]
[1766974729297,0.0112416,89044.0,89017.0,0.0112449]
[1766974729500,0.0112416,89044.0,89000.0,0.22453584]
[1766974729501,0.011241,89049.0,89019.0,0.0112446]
[1766974729701,0.011241,89049.0,89022.0,0.0112443]
[1766974730102,0.00016846,89044.0,89022.0,0.0112443]
[1766974730511,0.011241,89049.0,89022.0,0.0112443]
[1766974731102,0.0112404,89054.0,89026.0,0.0112438]
[1766974731405,0.0112409,89050.0,89027.0,0.05716]
[1766974731611,0.00016846,89049.0,89031.0,0.00016846]
[1766974732207,0.0112395,89061.0,89036.0,0.0112425]
[1766974732905,0.0112402,89055.0,89031.0,0.01141166]
[1766974733109,0.0112402,89055.0,89037.0,0.05716]
[1766974733310,0.01140866,89055.0,89037.0,0.05716]
[1766974733501,0.01140866,89055.0,89038.0,0.15268]
[1766974734302,0.00016846,89055.0,89038.0,0.15268]
[1766974735708,0.00016846,89055.0,89038.0,0.1639222]
[1766974736099,0.011239,89065.0,89038.0,0.1639222]
[1766974736818,0.011239,89065.0,89043.0,0.0112417]
[1766974737111,0.0112385,89069.0,89043.0,0.0112417]
[1766974737320,0.0112385,89069.0,89046.0,0.0112412]
[1766974737811,0.09552,89083.0,89040.0,0.01290419]
[1766974738018,0.09552,89083.0,89043.0,0.0112416]
[1766974738215,0.08014002,89106.0,89054.0,0.00016846]
[1766974738421,0.0112354,89094.0,89055.0,0.15264]
[1766974738612,0.39152,89105.0,89067.0,0.0112386]
[1766974738812,0.0112347,89099.0,89068.0,0.15264]
[1766974739010,0.09552,89102.0,89073.0,0.0112379]
[1766974739205,0.09552,89102.0,89069.0,0.09552]
[1766974739408,0.0112367,89083.0,89070.0,0.09552]
[1766974739710,0.22453584,89090.0,89071.0,0.09552]
[1766974740118,0.22453584,89090.0,89056.0,0.01124]
[1766974740418,0.09552,89102.0,89059.0,0.0112396]
[1766974740419,0.22453584,89100.0,89059.0,0.0112396]
[1766974740621,0.01140456,89088.0,89071.0,0.00016836]
[1766974741206,0.0112365,89085.0,89071.0,0.00016836]
[1766974741609,0.0112366,89084.0,89070.0,0.09380836]
[1766974741914,0.0112367,89083.0,89067.0,0.05712]
[1766974742217,0.09552,89096.0,89068.0,0.09552]
[1766974742415,0.22453584,89110.0,89068.0,0.09552]
[1766974742618,0.0112349,89097.0,89080.0,0.00016836]
[1766974742823,0.00016836,89098.0,89081.0,0.05712]
[1766974743613,0.0112325,89117.0,89090.0,0.0112357]
[1766974743817,0.00022442,89120.0,89091.0,0.15264]
[1766974743818,0.0112329,89114.0,89091.0,0.15264]
[1766974744014,0.22476026,89120.0,89092.0,0.09552]
[1766974744208,0.22476026,89120.0,89080.0,0.00016836]
[1766974744209,0.22453584,89110.0,89080.0,0.00016836]
[1766974744524,0.0112343,89102.0,89081.0,0.15264]
[1766974744829,0.0112347,89099.0,89081.0,0.15264]
[1766974745206,0.00016836,89100.0,89081.0,0.15264]
[1766974745408,0.01140296,89100.0,89080.0,0.00016836]
[1766974745720,0.01140296,89100.0,89081.0,0.15264]
[1766974746116,0.00016836,89100.0,89080.0,0.00016836]
[1766974746415,0.0112368,89082.0,89042.0,0.0112418]
[1766974746615,0.01289826,89114.0,89056.0,0.170209]
[1766974746819,0.22453584,89110.0,89073.0,0.0112379]
[1766974747010,0.22453584,89110.0,89074.0,0.15264]
[1766974747209,0.09552,89109.0,89075.0,0.09552]
[1766974747410,0.00016836,89101.0,89083.0,0.00016836]
[1766974747614,0.011235,89097.0,89083.0,0.00016836]
[1766974748523,0.00016836,89101.0,89083.0,0.00016836]
[1766974748710,0.011235,89097.0,89083.0,0.00016836]
[1766974749016,0.00022442,89120.0,89083.0,0.00016836]
[1766974749221,0.0112323,89118.0,89083.0,0.00016836]
[1766974749420,0.00022442,89120.0,89094.0,0.0112352]
[1766974749720,0.00022442,89120.0,89095.0,0.13564]
[1766974750023,0.011233,89113.0,89096.0,0.00445846]
[1766974750221,0.02400732,89112.0,89099.0,0.0112345]
[1766974750409,0.00016836,89116.0,89096.0,2.061e-05]
[1766974750922,0.00016836,89116.0,89097.0,0.0112349]
[1766974751118,0.00016836,89116.0,89096.0,2.061e-05]
[1766974752620,0.0112338,89106.0,89087.0,0.01289845]
[1766974752922,0.0112342,89103.0,89088.0,0.1526]
[1766974753118,0.0112342,89103.0,89083.0,0.01140496]
[1766974753119,0.00016836,89116.0,89083.0,0.00016836]
[1766974753324,0.00016836,89116.0,89085.0,0.0112364]
[1766974753723,0.0112333,89110.0,89088.0,0.011236]
[1766974753914,0.0112336,89107.0,89084.0,0.1638364]
[1766974754113,0.011234,89104.0,89085.0,0.05708]
[1766974754313,0.011234,89104.0,89085.0,0.1526]
[1766974754511,0.011234,89104.0,89084.0,0.0112364]
[1766974754715,0.0112331,89111.0,89090.0,0.0112358]
[1766974754924,0.00016836,89116.0,89086.0,0.0683163]
[1766974756020,0.0112336,89107.0,89086.0,0.0683163]
[1766974756232,0.0112336,89107.0,89086.0,0.05708]
[1766974756522,0.0112336,89107.0,89083.0,0.00016836]
[1766974756727,0.0112336,89107.0,89084.0,0.0546]
[1766974756928,0.0112336,89107.0,89085.0,0.1067564]
[1766974757822,0.0112342,89103.0,89083.0,0.01140506]
[1766974758023,0.0112329,89113.0,89084.0,0.05704]
[1766974758229,0.0112329,89113.0,89085.0,0.09552]
[1766974758828,0.011234,89105.0,89085.0,0.09552]
[1766974759028,0.00016836,89116.0,89094.0,0.0112352]
[1766974759215,0.00016836,89116.0,89095.0,0.15256]
[1766974759216,0.0112329,89114.0,89095.0,0.15256]
[1766974759421,0.0112331,89112.0,89090.0,0.0112357]
[1766974759618,0.0112335,89109.0,89086.0,0.0112362]
[1766974759837,0.0112335,89109.0,89088.0,0.011236]
[1766974760030,0.011233,89113.0,89090.0,0.0112357]
[1766974760230,0.0112326,89115.0,89087.0,0.12008]
[1766974760429,0.0112326,89115.0,89083.0,0.00016836]
[1766974760430,0.0112342,89103.0,89083.0,0.00016836]
[1766974760624,0.00016836,89116.0,89088.0,0.05704]
[1766974760625,0.0112338,89106.0,89088.0,0.05704]
[1766974760825,0.0112335,89109.0,89089.0,0.0112358]
[1766974761128,0.0112335,89109.0,89088.0,0.0682759]
[1766974761835,0.00016836,89116.0,89088.0,0.0682759]
[1766974762133,0.0112337,89107.0,89084.0,0.0112364]
[1766974762330,0.0112329,89113.0,89083.0,0.00016836]
[1766974762528,0.02349547,89112.0,89083.0,6e-08]
[1766974762732,0.0112356,89092.0,89066.0,0.09552]
[1766974763126,0.02349982,89091.0,89066.0,0.09552]